[Event "Early-Titled-Tuesday-Blitz-April-16-2024"]
[Site "Chess.com"]
[Date "2024.04.16"]
[Round "5"]
[White "Sanyura"]
[Black "emeli_chess"]
[Result "1/2-1/2"]
[WhiteElo "2599"]
[BlackElo "2467"]
[TimeControl "180+1"]
[EndTime "8:56:35 PDT"]
[Termination "Game drawn by repetition"]

1. Nf3 {[%clk 0:02:46.1]} 1... f5 {[%clk 0:02:59.1]} 2. g3 {[%clk 0:02:45.9]}
2... Nf6 {[%clk 0:02:59]} 3. Bg2 {[%clk 0:02:46.8]} 3... d6 {[%clk 0:02:58.2]}
4. O-O {[%clk 0:02:47.4]} 4... e5 {[%clk 0:02:58.2]} 5. c4 {[%clk 0:02:47.2]}
5... Be7 {[%clk 0:02:56.2]} 6. Nc3 {[%clk 0:02:47.5]} 6... O-O {[%clk
0:02:55.1]} 7. d4 {[%clk 0:02:47.8]} 7... e4 {[%clk 0:02:54.6]} 8. Ng5 {[%clk
0:02:43.5]} 8... c6 {[%clk 0:02:54]} 9. d5 {[%clk 0:02:43.6]} 9... Na6 {[%clk
0:02:39]} 10. f3 {[%clk 0:02:15.8]} 10... exf3 {[%clk 0:02:38.4]} 11. exf3
{[%clk 0:02:16.7]} 11... Nxd5 {[%clk 0:02:02]} 12. cxd5 {[%clk 0:02:04.8]} 12...
Bxg5 {[%clk 0:02:01.8]} 13. Bxg5 {[%clk 0:02:03.4]} 13... Qxg5 {[%clk
0:02:01.2]} 14. dxc6 {[%clk 0:02:04.3]} 14... bxc6 {[%clk 0:01:58.6]} 15. Qxd6
{[%clk 0:02:03.8]} 15... Qe3+ {[%clk 0:01:48.4]} 16. Kh1 {[%clk 0:02:03.5]}
16... Qc5 {[%clk 0:01:48.5]} 17. Qxc5 {[%clk 0:02:00.1]} 17... Nxc5 {[%clk
0:01:47.9]} 18. f4 {[%clk 0:02:01]} 18... Bb7 {[%clk 0:01:39.1]} 19. Rfd1 {[%clk
0:01:58.6]} 19... Rad8 {[%clk 0:01:37.3]} 20. Kg1 {[%clk 0:01:57.2]} 20... Nd3
{[%clk 0:01:22.8]} 21. Rd2 {[%clk 0:01:32.7]} 21... Nb4 {[%clk 0:01:17.6]} 22.
Rad1 {[%clk 0:01:16.5]} 22... Nd5 {[%clk 0:01:07.6]} 23. Nxd5 {[%clk 0:01:08.4]}
23... cxd5 {[%clk 0:01:07.6]} 24. Bxd5+ {[%clk 0:01:09.3]} 24... Bxd5 {[%clk
0:01:07.5]} 25. Rxd5 {[%clk 0:01:10.2]} 25... Rxd5 {[%clk 0:01:06.4]} 26. Rxd5
{[%clk 0:01:11.1]} 26... g6 {[%clk 0:01:06.5]} 27. Kf2 {[%clk 0:01:10.7]} 27...
Rc8 {[%clk 0:01:04.5]} 28. Rd2 {[%clk 0:01:09.6]} 28... Kf7 {[%clk 0:00:59.3]}
29. b4 {[%clk 0:01:09.7]} 29... Ke6 {[%clk 0:00:58.6]} 30. Ke3 {[%clk 0:01:08]}
30... Rc4 {[%clk 0:00:52]} 31. Rb2 {[%clk 0:01:08]} 31... Kd5 {[%clk 0:00:48.1]}
32. Kd3 {[%clk 0:01:07.3]} 32... Rc1 {[%clk 0:00:44.2]} 33. Re2 {[%clk
0:01:03.9]} 33... Rb1 {[%clk 0:00:39.1]} 34. Kc3 {[%clk 0:01:01.2]} 34... Kd6
{[%clk 0:00:34.3]} 35. Kc4 {[%clk 0:00:55.2]} 35... a6 {[%clk 0:00:28.6]} 36. a4
{[%clk 0:00:39.8]} 36... Rc1+ {[%clk 0:00:28.3]} 37. Kb3 {[%clk 0:00:40.3]}
37... Rb1+ {[%clk 0:00:27.6]} 38. Kc3 {[%clk 0:00:38.4]} 38... Ra1 {[%clk
0:00:20.6]} 39. Kb3 {[%clk 0:00:32.8]} 39... Rb1+ {[%clk 0:00:20.3]} 40. Rb2
{[%clk 0:00:32.9]} 40... Rd1 {[%clk 0:00:16.8]} 41. b5 {[%clk 0:00:23.5]} 41...
axb5 {[%clk 0:00:16.3]} 42. a5 {[%clk 0:00:24.2]} 42... Kc5 {[%clk 0:00:15.1]}
43. Rc2+ {[%clk 0:00:24.3]} 43... Kd6 {[%clk 0:00:13.4]} 44. Rc8 {[%clk
0:00:10.7]} 44... Ra1 {[%clk 0:00:12.2]} 45. Ra8 {[%clk 0:00:08.3]} 45... Kc5
{[%clk 0:00:10.8]} 46. Rc8+ {[%clk 0:00:08.4]} 46... Kd6 {[%clk 0:00:10.4]} 47.
Ra8 {[%clk 0:00:06.5]} 47... Kc5 {[%clk 0:00:10.7]} 48. Rc8+ {[%clk 0:00:06.9]}
48... Kd6 {[%clk 0:00:11]} 1/2-1/2

[Event "Early-Titled-Tuesday-Blitz-April-16-2024"]
[Site "Chess.com"]
[Date "2024.04.16"]
[Round "5"]
[White "ulises2013"]
[Black "Rud_Makarian"]
[Result "0-1"]
[WhiteElo "2707"]
[BlackElo "3015"]
[TimeControl "180+1"]
[EndTime "8:56:36 PDT"]
[Termination "Rud_Makarian won by resignation"]

1. e4 {[%clk 0:02:58.8]} 1... c5 {[%clk 0:02:59.3]} 2. g3 {[%clk 0:02:58.8]}
2... d5 {[%clk 0:02:57.9]} 3. exd5 {[%clk 0:02:59]} 3... Qxd5 {[%clk 0:02:58.3]}
4. Nf3 {[%clk 0:02:59.7]} 4... b6 {[%clk 0:02:44.3]} 5. Bg2 {[%clk 0:02:58.9]}
5... Bb7 {[%clk 0:02:45.2]} 6. O-O {[%clk 0:02:57.6]} 6... Nf6 {[%clk
0:02:45.1]} 7. Nc3 {[%clk 0:02:57]} 7... Qd8 {[%clk 0:02:45]} 8. d4 {[%clk
0:02:56.4]} 8... e6 {[%clk 0:02:38.1]} 9. dxc5 {[%clk 0:02:43.6]} 9... Qxd1
{[%clk 0:02:19.4]} 10. Rxd1 {[%clk 0:02:44.5]} 10... Bxc5 {[%clk 0:02:18.9]} 11.
Nb5 {[%clk 0:02:34.2]} 11... Na6 {[%clk 0:02:13.8]} 12. Nd6+ {[%clk 0:02:31.2]}
12... Bxd6 {[%clk 0:02:13.2]} 13. Rxd6 {[%clk 0:02:32.1]} 13... O-O {[%clk
0:02:13.4]} 14. Bg5 {[%clk 0:02:24.8]} 14... Ne4 {[%clk 0:02:09.8]} 15. Rd4
{[%clk 0:02:10.3]} 15... Nac5 {[%clk 0:01:52.9]} 16. Be3 {[%clk 0:02:03.1]}
16... Rac8 {[%clk 0:01:47.6]} 17. c3 {[%clk 0:02:01.6]} 17... Nf6 {[%clk
0:01:44.4]} 18. Rad1 {[%clk 0:01:58]} 18... Nd5 {[%clk 0:01:43.5]} 19. Bc1
{[%clk 0:01:53]} 19... b5 {[%clk 0:01:41.9]} 20. Ne5 {[%clk 0:01:49.7]} 20...
Rfd8 {[%clk 0:01:41.3]} 21. Nd3 {[%clk 0:01:48.3]} 21... Nxd3 {[%clk 0:01:36]}
22. R4xd3 {[%clk 0:01:45.6]} 22... a6 {[%clk 0:01:34]} 23. a3 {[%clk 0:01:40.8]}
23... h6 {[%clk 0:01:32.4]} 24. Bxd5 {[%clk 0:01:30]} 24... Bxd5 {[%clk
0:01:27.2]} 25. f3 {[%clk 0:01:30.5]} 25... f6 {[%clk 0:01:26.9]} 26. Kf2 {[%clk
0:01:30.6]} 26... Kf7 {[%clk 0:01:27.7]} 27. Be3 {[%clk 0:01:30.2]} 27... g5
{[%clk 0:01:26.4]} 28. Rd4 {[%clk 0:01:29.5]} 28... Rc4 {[%clk 0:01:23.9]} 29.
h4 {[%clk 0:01:23.9]} 29... Kg6 {[%clk 0:01:20.6]} 30. hxg5 {[%clk 0:01:19.6]}
30... hxg5 {[%clk 0:01:21.5]} 31. g4 {[%clk 0:01:19.6]} 31... Rh8 {[%clk
0:01:17.9]} 32. Kg3 {[%clk 0:01:19.7]} 32... a5 {[%clk 0:01:12.5]} 33. Bf2
{[%clk 0:01:16]} 33... a4 {[%clk 0:01:08.6]} 34. Be3 {[%clk 0:01:13.4]} 34...
Rc7 {[%clk 0:01:04.1]} 35. Rxd5 {[%clk 0:00:45.4]} 35... exd5 {[%clk 0:01:05]}
36. Rxd5 {[%clk 0:00:45.9]} 36... Rch7 {[%clk 0:01:05.4]} 37. Bg1 {[%clk
0:00:42.8]} 37... Re7 {[%clk 0:00:57.1]} 38. Kf2 {[%clk 0:00:33.8]} 38... Rhe8
{[%clk 0:00:57.3]} 39. Rd2 {[%clk 0:00:31.1]} 39... Re1 {[%clk 0:00:48]} 40. Bh2
{[%clk 0:00:30]} 40... Rb1 {[%clk 0:00:47.7]} 41. Bc7 {[%clk 0:00:18.7]} 41...
Ree1 {[%clk 0:00:40.9]} 42. Bb6 {[%clk 0:00:19]} 42... Kf7 {[%clk 0:00:39.7]}
43. Kg2 {[%clk 0:00:18.2]} 43... Ke6 {[%clk 0:00:36.5]} 44. Bd4 {[%clk
0:00:15.2]} 44... f5 {[%clk 0:00:35.5]} 45. gxf5+ {[%clk 0:00:14.9]} 45... Kxf5
{[%clk 0:00:36.4]} 46. Bf2 {[%clk 0:00:15.2]} 46... Red1 {[%clk 0:00:35.2]} 47.
Rc2 {[%clk 0:00:15.2]} 47... Ra1 {[%clk 0:00:32.9]} 48. Kg3 {[%clk 0:00:14.3]}
48... Rd3 {[%clk 0:00:26]} 49. Kg2 {[%clk 0:00:09.8]} 49... Rb1 {[%clk
0:00:26.7]} 50. Bg1 {[%clk 0:00:07]} 50... Rbd1 {[%clk 0:00:17.6]} 0-1

[Event "Early-Titled-Tuesday-Blitz-April-16-2024"]
[Site "Chess.com"]
[Date "2024.04.16"]
[Round "5"]
[White "Meri-Arabidze"]
[Black "snowlord"]
[Result "0-1"]
[WhiteElo "2696"]
[BlackElo "2957"]
[TimeControl "180+1"]
[EndTime "8:56:37 PDT"]
[Termination "snowlord won on time"]

1. Nf3 {[%clk 0:03:00.9]} 1... d5 {[%clk 0:02:58.6]} 2. b3 {[%clk 0:03:01]} 2...
Bg4 {[%clk 0:02:56]} 3. Bb2 {[%clk 0:02:59.5]} 3... Bxf3 {[%clk 0:02:54.6]} 4.
exf3 {[%clk 0:03:00.4]} 4... e6 {[%clk 0:02:55.2]} 5. d4 {[%clk 0:02:59.8]} 5...
g6 {[%clk 0:02:55]} 6. Bd3 {[%clk 0:02:59.2]} 6... Bg7 {[%clk 0:02:55.3]} 7. O-O
{[%clk 0:02:59.2]} 7... c5 {[%clk 0:02:51.3]} 8. Bb5+ {[%clk 0:02:48.9]} 8...
Nc6 {[%clk 0:02:48.3]} 9. c4 {[%clk 0:02:29.3]} 9... dxc4 {[%clk 0:02:34.5]} 10.
Qe2 {[%clk 0:02:29]} 10... cxd4 {[%clk 0:02:16.9]} 11. Qxc4 {[%clk 0:02:27.9]}
11... Ne7 {[%clk 0:02:16]} 12. Ba3 {[%clk 0:02:15.6]} 12... Rc8 {[%clk
0:01:58.9]} 13. Nd2 {[%clk 0:02:11.3]} 13... O-O {[%clk 0:01:45.4]} 14. Ne4
{[%clk 0:02:03]} 14... d3 {[%clk 0:01:23.6]} 15. Rad1 {[%clk 0:01:59.8]} 15...
Nd4 {[%clk 0:01:03.9]} 16. Qxd3 {[%clk 0:01:58.3]} 16... a6 {[%clk 0:01:04]} 17.
Nd6 {[%clk 0:01:43.1]} 17... Rc3 {[%clk 0:00:49.3]} 18. Qxc3 {[%clk 0:01:37.7]}
18... Ne2+ {[%clk 0:00:22.4]} 19. Bxe2 {[%clk 0:01:37.4]} 19... Bxc3 {[%clk
0:00:23.3]} 20. Ne4 {[%clk 0:01:34.9]} 20... Nd5 {[%clk 0:00:17.1]} 21. Bxf8
{[%clk 0:01:22.5]} 21... Qxf8 {[%clk 0:00:17.2]} 22. Rxd5 {[%clk 0:01:18.8]}
22... exd5 {[%clk 0:00:18.1]} 23. Nxc3 {[%clk 0:01:19.4]} 23... Qc5 {[%clk
0:00:15.4]} 24. Na4 {[%clk 0:00:41.3]} 24... Qc2 {[%clk 0:00:15.4]} 25. Bd1
{[%clk 0:00:39.5]} 25... Qc6 {[%clk 0:00:06]} 26. b4 {[%clk 0:00:28.5]} 26... d4
{[%clk 0:00:04.1]} 27. Nc5 {[%clk 0:00:27.7]} 27... a5 {[%clk 0:00:04.7]} 28. a3
{[%clk 0:00:27.3]} 28... axb4 {[%clk 0:00:05.3]} 29. axb4 {[%clk 0:00:28.2]}
29... b6 {[%clk 0:00:04]} 30. Nb3 {[%clk 0:00:27.6]} 30... Qc3 {[%clk
0:00:04.2]} 31. b5 {[%clk 0:00:23.9]} 31... d3 {[%clk 0:00:04.5]} 32. g3 {[%clk
0:00:24.3]} 32... h5 {[%clk 0:00:04.7]} 33. h4 {[%clk 0:00:24.3]} 33... Kg7
{[%clk 0:00:05.4]} 34. Kg2 {[%clk 0:00:24.6]} 34... Qb4 {[%clk 0:00:05.5]} 35.
Nc1 {[%clk 0:00:17.8]} 35... Qc3 {[%clk 0:00:04.2]} 36. Nb3 {[%clk 0:00:16.5]}
36... Qc4 {[%clk 0:00:03.9]} 37. Re1 {[%clk 0:00:14]} 37... Qxb5 {[%clk
0:00:04.4]} 38. Re3 {[%clk 0:00:13.4]} 38... Qc4 {[%clk 0:00:04.6]} 39. Nd2
{[%clk 0:00:04.6]} 39... Qc1 {[%clk 0:00:04.6]} 40. Rxd3 {[%clk 0:00:04.6]}
40... Qxd1 {[%clk 0:00:05.2]} 41. f4 {[%clk 0:00:03.6]} 41... b5 {[%clk
0:00:05.3]} 42. Rd4 {[%clk 0:00:03.7]} 42... b4 {[%clk 0:00:04.9]} 43. Rxb4
{[%clk 0:00:02.1]} 43... Qxd2 {[%clk 0:00:05.5]} 0-1

[Event "Early-Titled-Tuesday-Blitz-April-16-2024"]
[Site "Chess.com"]
[Date "2024.04.16"]
[Round "5"]
[White "AlmasRakhmatullaev"]
[Black "SahibSinghKnight"]
[Result "1-0"]
[WhiteElo "2864"]
[BlackElo "2629"]
[TimeControl "180+1"]
[EndTime "8:56:39 PDT"]
[Termination "AlmasRakhmatullaev won by resignation"]

1. e4 {[%clk 0:03:00.9]} 1... e6 {[%clk 0:02:59.5]} 2. d4 {[%clk 0:03:00.6]}
2... d5 {[%clk 0:02:58.9]} 3. Nc3 {[%clk 0:03:01.5]} 3... Nf6 {[%clk 0:02:55.6]}
4. Bg5 {[%clk 0:03:00.4]} 4... Bb4 {[%clk 0:02:54.9]} 5. e5 {[%clk 0:02:59.4]}
5... h6 {[%clk 0:02:54.4]} 6. Bc1 {[%clk 0:03:00.1]} 6... Ne4 {[%clk 0:02:46.1]}
7. Qg4 {[%clk 0:03:00.5]} 7... g6 {[%clk 0:02:44.7]} 8. a3 {[%clk 0:02:58.4]}
8... Bxc3+ {[%clk 0:02:22.1]} 9. bxc3 {[%clk 0:02:58.4]} 9... c5 {[%clk
0:02:22.2]} 10. Ne2 {[%clk 0:02:55.7]} 10... cxd4 {[%clk 0:02:16.7]} 11. cxd4
{[%clk 0:02:56.6]} 11... Qa5+ {[%clk 0:02:16.1]} 12. c3 {[%clk 0:02:56.7]} 12...
Nc6 {[%clk 0:02:16.6]} 13. f3 {[%clk 0:02:52.7]} 13... Nxd4 {[%clk 0:02:16.4]}
14. fxe4 {[%clk 0:02:49.9]} 14... Nc2+ {[%clk 0:02:15.1]} 15. Kf2 {[%clk
0:02:49.1]} 15... Qc5+ {[%clk 0:01:51.7]} 16. Kg3 {[%clk 0:02:34.8]} 16... Nxa1
{[%clk 0:01:43.7]} 17. Qf3 {[%clk 0:02:35.1]} 17... h5 {[%clk 0:01:33.7]} 18. h4
{[%clk 0:02:28.8]} 18... Bd7 {[%clk 0:01:26.6]} 19. Bg5 {[%clk 0:02:23.9]} 19...
f5 {[%clk 0:01:03.2]} 20. exf5 {[%clk 0:02:01]} 20... O-O {[%clk 0:00:29.4]} 21.
f6 {[%clk 0:01:55.6]} 21... Nb3 {[%clk 0:00:21.6]} 22. Qd3 {[%clk 0:01:46.9]}
22... Kf7 {[%clk 0:00:21.4]} 23. Nf4 {[%clk 0:01:44.2]} 23... Rg8 {[%clk
0:00:21.5]} 24. Be2 {[%clk 0:01:43]} 24... d4 {[%clk 0:00:20.5]} 25. c4 {[%clk
0:01:34]} 25... Qxe5 {[%clk 0:00:17.6]} 26. Qxb3 {[%clk 0:01:30.7]} 26... Bc6
{[%clk 0:00:17.5]} 27. Bf3 {[%clk 0:01:23.5]} 27... Bxf3 {[%clk 0:00:13.6]} 28.
Qxf3 {[%clk 0:01:24.4]} 28... Qc7 {[%clk 0:00:12.2]} 29. Qe4 {[%clk 0:01:22.8]}
29... Rae8 {[%clk 0:00:12.3]} 30. Re1 {[%clk 0:01:21]} 30... Qc6 {[%clk
0:00:06.9]} 31. Qxc6 {[%clk 0:01:18]} 31... bxc6 {[%clk 0:00:07.2]} 32. Nd3
{[%clk 0:01:18.9]} 32... Rgf8 {[%clk 0:00:01.4]} 33. Ne5+ {[%clk 0:01:17.3]}
33... Kg8 {[%clk 0:00:01.3]} 34. Nxg6 {[%clk 0:01:15]} 34... Rf7 {[%clk
0:00:01.6]} 35. Ne5 {[%clk 0:01:15.4]} 35... Rc7 {[%clk 0:00:02]} 36. Rf1 {[%clk
0:01:08.5]} 36... Rf8 {[%clk 0:00:01.5]} 37. Bh6 {[%clk 0:01:08.4]} 37... Rff7
{[%clk 0:00:02.1]} 38. Nxf7 {[%clk 0:01:08.3]} 38... Kxf7 {[%clk 0:00:03]} 39.
Kf4 {[%clk 0:01:05.6]} 39... Rd7 {[%clk 0:00:02]} 40. Ke4 {[%clk 0:01:04.5]}
40... c5 {[%clk 0:00:02.6]} 41. Bg5 {[%clk 0:00:59.4]} 41... d3 {[%clk
0:00:02.6]} 42. Be3 {[%clk 0:00:58.3]} 42... d2 {[%clk 0:00:02.9]} 43. Rd1
{[%clk 0:00:58.2]} 43... Kxf6 {[%clk 0:00:03.5]} 44. Rxd2 {[%clk 0:00:58.7]}
44... Rc7 {[%clk 0:00:03.9]} 45. Rd6 {[%clk 0:00:53.8]} 45... Ke7 {[%clk
0:00:03.3]} 46. Ra6 {[%clk 0:00:53.3]} 46... Kd7 {[%clk 0:00:03.2]} 47. Bf4
{[%clk 0:00:52]} 47... Rb7 {[%clk 0:00:01.6]} 48. Rd6+ {[%clk 0:00:51.7]} 48...
Ke7 {[%clk 0:00:01.5]} 49. Rc6 {[%clk 0:00:52.1]} 49... Rb1 {[%clk 0:00:01.9]}
50. Rxc5 {[%clk 0:00:52]} 50... Kf6 {[%clk 0:00:02.8]} 51. Bg5+ {[%clk
0:00:51.9]} 51... Kg6 {[%clk 0:00:03.4]} 52. Ra5 {[%clk 0:00:50.7]} 52... Re1+
{[%clk 0:00:03.9]} 53. Kf3 {[%clk 0:00:50.6]} 53... e5 {[%clk 0:00:04.1]} 54.
Ra6+ {[%clk 0:00:49.6]} 54... Kf7 {[%clk 0:00:03.7]} 55. Rxa7+ {[%clk
0:00:49.8]} 55... Ke6 {[%clk 0:00:04.2]} 56. Ra6+ {[%clk 0:00:49.3]} 56... Kd7
{[%clk 0:00:04.9]} 57. c5 {[%clk 0:00:49.7]} 57... e4+ {[%clk 0:00:04.2]} 58.
Kf2 {[%clk 0:00:49.3]} 58... Rd1 {[%clk 0:00:04]} 59. Rd6+ {[%clk 0:00:48.9]}
59... Rxd6 {[%clk 0:00:03.4]} 60. cxd6 {[%clk 0:00:49.8]} 60... Kxd6 {[%clk
0:00:04.3]} 61. Ke3 {[%clk 0:00:50.7]} 61... Ke5 {[%clk 0:00:04.8]} 62. a4
{[%clk 0:00:50.9]} 62... Kd5 {[%clk 0:00:05.3]} 63. a5 {[%clk 0:00:51.3]} 1-0

[Event "Early-Titled-Tuesday-Blitz-April-16-2024"]
[Site "Chess.com"]
[Date "2024.04.16"]
[Round "5"]
[White "KubaGepard"]
[Black "JSPrepz"]
[Result "0-1"]
[WhiteElo "2588"]
[BlackElo "2824"]
[TimeControl "180+1"]
[EndTime "8:56:41 PDT"]
[Termination "JSPrepz won by checkmate"]

1. d4 {[%clk 0:03:00.9]} 1... Nf6 {[%clk 0:02:59.9]} 2. Nf3 {[%clk 0:03:01.8]}
2... c5 {[%clk 0:02:58]} 3. d5 {[%clk 0:03:01.5]} 3... b5 {[%clk 0:02:56.9]} 4.
Bg5 {[%clk 0:03:01.3]} 4... g6 {[%clk 0:02:54.1]} 5. Bxf6 {[%clk 0:02:58.7]}
5... exf6 {[%clk 0:02:55]} 6. e4 {[%clk 0:02:57.9]} 6... b4 {[%clk 0:02:55.5]}
7. Nbd2 {[%clk 0:02:55]} 7... Bg7 {[%clk 0:02:54.4]} 8. Nc4 {[%clk 0:02:53.6]}
8... d6 {[%clk 0:02:54.6]} 9. Bd3 {[%clk 0:02:54]} 9... O-O {[%clk 0:02:54.6]}
10. O-O {[%clk 0:02:54.3]} 10... Re8 {[%clk 0:02:49.7]} 11. h3 {[%clk
0:02:53.8]} 11... Qc7 {[%clk 0:02:45.2]} 12. a3 {[%clk 0:02:51.9]} 12... Nd7
{[%clk 0:02:44]} 13. Qd2 {[%clk 0:02:48.1]} 13... a5 {[%clk 0:02:22.1]} 14. a4
{[%clk 0:02:35.8]} 14... Ne5 {[%clk 0:02:02.2]} 15. Qe2 {[%clk 0:02:23]} 15...
Nxc4 {[%clk 0:01:54.3]} 16. Bxc4 {[%clk 0:02:23.1]} 16... f5 {[%clk 0:01:55]}
17. Rae1 {[%clk 0:01:52.6]} 17... fxe4 {[%clk 0:01:12.9]} 18. Ng5 {[%clk
0:01:47.3]} 18... Bxb2 {[%clk 0:00:57.9]} 19. Nxe4 {[%clk 0:01:40.3]} 19... Bf5
{[%clk 0:00:58.1]} 20. Qf3 {[%clk 0:01:36]} 20... Kg7 {[%clk 0:00:50.4]} 21. g4
{[%clk 0:01:34.3]} 21... Bxe4 {[%clk 0:00:48.2]} 22. Rxe4 {[%clk 0:01:35.2]}
22... Bc3 {[%clk 0:00:42.3]} 23. Rd1 {[%clk 0:01:30]} 23... Rxe4 {[%clk
0:00:38.4]} 24. Qxe4 {[%clk 0:01:29.4]} 24... Qd8 {[%clk 0:00:35.3]} 25. Bb5
{[%clk 0:01:28.2]} 25... Qh4 {[%clk 0:00:31]} 26. Rd3 {[%clk 0:01:27.3]} 26...
Ra7 {[%clk 0:00:28.8]} 27. Qf4 {[%clk 0:01:15.3]} 27... Be5 {[%clk 0:00:26.1]}
28. Qf3 {[%clk 0:01:10.8]} 28... Bd4 {[%clk 0:00:20.8]} 29. Qf4 {[%clk
0:01:05.3]} 29... Be5 {[%clk 0:00:20.4]} 30. Qf3 {[%clk 0:01:05.3]} 30... Re7
{[%clk 0:00:21]} 31. Re3 {[%clk 0:01:03.2]} 31... Qg5 {[%clk 0:00:21.2]} 32. Kg2
{[%clk 0:01:02.7]} 32... h5 {[%clk 0:00:20.7]} 33. Kf1 {[%clk 0:00:59.3]} 33...
hxg4 {[%clk 0:00:20.9]} 34. Qxg4 {[%clk 0:00:58.6]} 34... Qh6 {[%clk 0:00:19.6]}
35. Bd3 {[%clk 0:00:49.8]} 35... Rc7 {[%clk 0:00:18.7]} 36. Kg2 {[%clk
0:00:47.3]} 36... Rb7 {[%clk 0:00:16.2]} 37. Bc4 {[%clk 0:00:45]} 37... Rc7
{[%clk 0:00:16.1]} 38. Qf3 {[%clk 0:00:42.9]} 38... Qg5+ {[%clk 0:00:15.9]} 39.
Qg4 {[%clk 0:00:42.4]} 39... Qd8 {[%clk 0:00:13.7]} 40. Qe2 {[%clk 0:00:37.4]}
40... Re7 {[%clk 0:00:11.6]} 41. f4 {[%clk 0:00:35]} 41... Bf6 {[%clk
0:00:11.9]} 42. Rxe7 {[%clk 0:00:34.5]} 42... Bxe7 {[%clk 0:00:12.8]} 43. Bb5
{[%clk 0:00:33.5]} 43... Bf6 {[%clk 0:00:13.2]} 44. Kf3 {[%clk 0:00:31.3]} 44...
Qc8 {[%clk 0:00:12.8]} 45. Kg2 {[%clk 0:00:28.9]} 45... Qf5 {[%clk 0:00:13]} 46.
Qd2 {[%clk 0:00:22.8]} 46... Bc3 {[%clk 0:00:12.9]} 47. Qe3 {[%clk 0:00:19]}
47... Qxc2+ {[%clk 0:00:13]} 48. Kg3 {[%clk 0:00:19.1]} 48... Qf5 {[%clk
0:00:12.6]} 49. Bc4 {[%clk 0:00:18.6]} 49... Qf6 {[%clk 0:00:12.4]} 50. Qf3
{[%clk 0:00:17.4]} 50... Qd4 {[%clk 0:00:12.2]} 51. Qe2 {[%clk 0:00:17]} 51...
Bd2 {[%clk 0:00:11.5]} 52. Qf1 {[%clk 0:00:15.5]} 52... Qc3+ {[%clk 0:00:09.7]}
53. Kg4 {[%clk 0:00:15.4]} 53... f5+ {[%clk 0:00:08.1]} 54. Kh4 {[%clk
0:00:14.6]} 54... Be1+ {[%clk 0:00:08.3]} 55. Kg5 {[%clk 0:00:14.8]} 55... Qg3#
{[%clk 0:00:08.2]} 0-1

[Event "Early-Titled-Tuesday-Blitz-April-16-2024"]
[Site "Chess.com"]
[Date "2024.04.16"]
[Round "5"]
[White "a-z30"]
[Black "SoCalJuniorChess"]
[Result "1-0"]
[WhiteElo "2393"]
[BlackElo "2195"]
[TimeControl "180+1"]
[EndTime "8:56:41 PDT"]
[Termination "a-z30 won on time"]

1. c4 {[%clk 0:03:00.9]} 1... e5 {[%clk 0:02:58.6]} 2. e3 {[%clk 0:03:00.1]}
2... Nf6 {[%clk 0:02:58.4]} 3. Nc3 {[%clk 0:02:59.4]} 3... d5 {[%clk 0:02:57.1]}
4. cxd5 {[%clk 0:02:58]} 4... Nxd5 {[%clk 0:02:58]} 5. Nf3 {[%clk 0:02:57.5]}
5... Nc6 {[%clk 0:02:54.9]} 6. Bb5 {[%clk 0:02:56.5]} 6... Bg4 {[%clk
0:02:33.9]} 7. Qa4 {[%clk 0:02:32.1]} 7... Nxc3 {[%clk 0:01:33.5]} 8. Bxc6+
{[%clk 0:02:26.5]} 8... bxc6 {[%clk 0:01:17.2]} 9. Qxg4 {[%clk 0:02:15.8]} 9...
Nd5 {[%clk 0:01:01.1]} 10. Nxe5 {[%clk 0:02:12.8]} 10... Qd6 {[%clk 0:01:00]}
11. Nc4 {[%clk 0:02:02.2]} 11... Qb4 {[%clk 0:00:52.8]} 12. O-O {[%clk
0:01:55.6]} 12... f5 {[%clk 0:00:47.8]} 13. Qe2 {[%clk 0:01:51.6]} 13... Be7
{[%clk 0:00:42.2]} 14. d4 {[%clk 0:01:44.5]} 14... O-O {[%clk 0:00:41.2]} 15.
Bd2 {[%clk 0:01:43.8]} 15... Qb5 {[%clk 0:00:39.8]} 16. Rfc1 {[%clk 0:01:39.3]}
16... Rab8 {[%clk 0:00:37.6]} 17. Qf1 {[%clk 0:01:19.9]} 17... Bf6 {[%clk
0:00:36.4]} 18. b3 {[%clk 0:01:12]} 18... c5 {[%clk 0:00:36.1]} 19. Ne5 {[%clk
0:01:04.2]} 19... Qe8 {[%clk 0:00:29]} 20. Rxc5 {[%clk 0:01:00.2]} 20... Bxe5
{[%clk 0:00:19.6]} 21. Rxd5 {[%clk 0:00:56.9]} 21... Bd6 {[%clk 0:00:18.4]} 22.
g3 {[%clk 0:00:56.5]} 22... Qe4 {[%clk 0:00:17.1]} 23. Qc4 {[%clk 0:00:43.8]}
23... Kh8 {[%clk 0:00:15.2]} 24. Rb5 {[%clk 0:00:36.8]} 24... Rbe8 {[%clk
0:00:13.5]} 25. Rc1 {[%clk 0:00:34.6]} 25... Rf6 {[%clk 0:00:13.2]} 26. Qc6
{[%clk 0:00:29]} 26... Qe7 {[%clk 0:00:08.9]} 27. Qc4 {[%clk 0:00:21.6]} 27...
Rh6 {[%clk 0:00:08.4]} 28. Bb4 {[%clk 0:00:20.4]} 28... Qg5 {[%clk 0:00:05.2]}
29. Bxd6 {[%clk 0:00:15.1]} 29... Qh5 {[%clk 0:00:05.5]} 30. h4 {[%clk
0:00:14.2]} 30... cxd6 {[%clk 0:00:05.1]} 31. Qc8 {[%clk 0:00:10.3]} 31... Rf6
{[%clk 0:00:01.7]} 32. Qd7 {[%clk 0:00:10.1]} 32... Rff8 {[%clk 0:00:01.7]} 33.
Rc7 {[%clk 0:00:10.1]} 33... Rg8 {[%clk 0:00:02.2]} 34. Rbb7 {[%clk 0:00:10.1]}
34... Qd1+ {[%clk 0:00:02.2]} 35. Kg2 {[%clk 0:00:09.8]} 35... Qd3 {[%clk
0:00:02.9]} 36. Qc6 {[%clk 0:00:09.8]} 36... Qd2 {[%clk 0:00:02.7]} 37. Qf3
{[%clk 0:00:10.2]} 37... Qd3 {[%clk 0:00:02.7]} 38. Re7 {[%clk 0:00:10.5]} 38...
Rd8 {[%clk 0:00:02.5]} 39. Rbd7 {[%clk 0:00:10.1]} 39... Rc8 {[%clk 0:00:02.1]}
40. Rxa7 {[%clk 0:00:09.9]} 40... Rb8 {[%clk 0:00:02.5]} 41. Rab7 {[%clk
0:00:09.6]} 41... Rbc8 {[%clk 0:00:02.9]} 42. Rec7 {[%clk 0:00:09.9]} 42... Rcd8
{[%clk 0:00:03.3]} 43. b4 {[%clk 0:00:09]} 43... Rde8 {[%clk 0:00:03.5]} 44. b5
{[%clk 0:00:09.2]} 44... Qa3 {[%clk 0:00:03.7]} 45. b6 {[%clk 0:00:09.6]} 45...
Qxa2 {[%clk 0:00:04.2]} 46. Re7 {[%clk 0:00:09.7]} 46... Qa6 {[%clk 0:00:03]}
47. Rxe8 {[%clk 0:00:08.9]} 47... Rxe8 {[%clk 0:00:03.9]} 48. Qc6 {[%clk
0:00:08]} 48... Rg8 {[%clk 0:00:03.5]} 49. Ra7 {[%clk 0:00:08.2]} 49... Qd3
{[%clk 0:00:02.8]} 50. Ra8 {[%clk 0:00:08]} 1-0